bitfinex-derivatives/quotes_ETHF0:USTF0_20240907
["timestamp","ask_amount","ask_price","bid_price","bid_amount"]
[1725740602989,4.90558,2284.4,2284.2,0.43781]
[1725740603292,4.90558,2284.4,2284.1,0.4041]
[1725740603293,0.43779,2284.3,2284.1,0.84191]
[1725740603495,1.26,2284.2,2284.1,0.84191]
[1725740603692,1.6228,2284.2,2284.1,0.84191]
[1725740605700,1.6228,2284.2,2284.1,0.4041]
[1725740606084,6.43821,2284.2,2284.1,0.0465]
[1725740606284,1.09457,2284.1,2283.4,2.86707173]
[1725740606592,0.43792,2283.6,2283.5,0.7465]
[1725740607103,0.82402,2283.6,2283.5,0.7465]
[1725740607400,0.82402,2283.6,2282.9,3.64585]
[1725740607401,0.438,2283.2,2282.9,3.64585]
[1725740607589,0.43802,2283.1,2283.0,0.7434]
[1725740607784,1.26,2283.1,2283.0,0.7434]
[1725740609196,1.26,2283.1,2283.0,1.18144]
[1725740610894,1.26,2283.2,2283.1,0.43802]
[1725740611088,1.26,2283.2,2283.0,1.18143]
[1725740612288,1.26,2283.2,2283.1,0.43802]
[1725740616399,0.7439,2283.4,2283.0,0.7434]
[1725740616597,0.365,2283.4,2283.3,0.43798]
[1725740616797,0.365,2283.4,2283.0,0.7434]
[1725740616798,0.365,2283.4,2283.2,0.43799]
[1725740617007,1.625,2283.4,2283.2,0.43799]
[1725740617810,2.06296,2283.4,2283.2,0.43799]
[1725740620498,3.2078,2283.6,2283.0,0.7434]
[1725740620700,1.09459,2284.1,2283.0,0.7434]
[1725740620701,1.6979,2283.7,2283.5,0.43793]
[1725740621006,1.6979,2283.7,2283.6,0.3736]
[1725740622102,1.26,2283.7,2283.6,0.81152]
[1725740627614,1.6979,2283.7,2283.6,0.3736]
[1725740627910,2.0832,2283.7,2283.6,0.3736]
[1725740629201,1.6453,2283.7,2283.6,0.81152]
[1725740629603,2.0832,2283.7,2283.6,0.3736]
[1725740630709,5.291,2283.7,2283.6,0.3736]
[1725740633209,5.291,2283.7,2283.6,0.81152]
[1725740633712,5.291,2283.7,2283.6,0.3736]
[1725740635712,2.0832,2283.7,2283.6,0.3736]
[1725740636010,5.291,2283.7,2283.6,0.3736]
[1725740637203,2.0832,2283.7,2283.6,0.3736]
[1725740637510,5.291,2283.7,2283.6,0.81152]
[1725740638009,5.291,2283.7,2283.6,0.3736]
[1725740638215,5.291,2283.7,2283.6,0.81152]
[1725740639716,4.8531,2283.7,2283.6,0.81152]
[1725740640322,5.291,2283.7,2283.6,0.81152]
[1725740640711,4.8531,2283.7,2283.6,0.81152]
[1725740642317,5.291,2283.7,2283.6,0.81152]
[1725740642911,2.0832,2283.7,2283.6,0.81152]
[1725740643112,5.291,2283.7,2283.6,0.81152]
[1725740644019,4.8531,2283.7,2283.6,0.81152]
[1725740644225,4.9057,2283.7,2283.6,0.81152]
[1725740645217,4.9057,2283.7,2283.6,0.3736]
[1725740646022,4.9057,2283.7,2283.6,0.81152]
[1725740646515,0.43799,2283.3,2283.1,0.438]
[1725740646717,1.26,2283.2,2283.1,1.1469]
[1725740647032,2.0727,2283.2,2283.1,1.58492]
[1725740647626,1.6347,2283.2,2283.1,1.58492]
[1725740647919,1.26,2283.2,2283.1,1.58492]
[1725740648118,0.43799,2283.3,2283.1,1.58492]
[1725740648314,0.43799,2283.3,2283.2,0.438]
[1725740648521,0.43799,2283.3,2283.1,1.5849]
[1725740648722,5.27227,2283.4,2283.2,0.438]
[1725740649122,0.43798,2283.3,2283.2,0.438]
[1725740649721,5.27227,2283.4,2283.2,0.438]
[1725740650528,0.43798,2283.3,2283.1,1.58491]
[1725740654222,5.27227,2283.4,2283.2,0.438]
[1725740655022,0.43799,2283.3,2283.1,1.58491]
[1725740659338,1.26,2283.2,2283.1,1.58491]
[1725740661832,1.698,2283.2,2283.1,1.1469]
[1725740662030,0.43808,2282.8,2282.7,1.14682869]
[1725740662232,1.69808,2282.8,2282.7,0.721]
[1725740662433,1.69808,2282.8,2282.7,0.3629]
[1725740663247,1.77808,2282.8,2282.7,0.3629]
[1725740667253,0.4381,2282.7,2282.5,0.80623]
[1725740667449,0.7994,2282.7,2282.6,0.376]
[1725740667646,4.0072,2282.7,2282.6,0.376]
[1725740667845,8.388,2282.7,2282.6,0.376]
[1725740669056,8.388,2282.7,2279.6,6.88475406]
[1725740669057,3.2078,2281.0,2279.6,6.88475406]
[1725740669356,3.2078,2281.0,2280.4,4.51e-06]
[1725740669357,0.43852,2280.5,2280.4,4.51e-06]
[1725740669551,3.2078,2280.5,2280.4,17.5272]
[1725740669750,3.2078,2280.5,2280.4,30.17328604]
[1725740669949,1.09586,2281.5,2280.4,30.17328604]
[1725740669950,3.2078,2281.2,2280.7,12.04525863]
[1725740670162,0.43836,2281.3,2280.7,12.64608604]
[1725740670460,0.21510801,2281.5,2280.7,12.64608604]
[1725740670461,1.1376666,2280.8,2280.7,12.04525863]
[1725740670655,1.34255602,2280.8,2280.7,12.04525863]
[1725740670952,4.55035602,2280.8,2280.7,12.04525863]
[1725740671346,3.41269032,2280.8,2280.7,12.04525863]
[1725740671552,4.98881692,2280.8,2280.7,12.04525863]
[1725740671753,3.85115032,2280.8,2280.7,12.04525863]
[1725740672459,4.34140537,2280.9,2280.7,12.04525863]
[1725740672654,3.2078,2280.9,2280.8,12.04525863]
[1725740672847,3.41270075,2280.9,2280.8,12.04525863]
[1725740673458,3.85114075,2280.9,2280.4,0.3631]
[1725740673758,0.43846,2280.8,2280.7,12.04525863]
[1725740673949,3.64626,2280.8,2280.7,12.04525863]
[1725740674264,0.43849,2280.7,2280.1,0.7405]
[1725740674460,0.43849,2280.7,2280.4,12.04525863]
[1725740674659,3.2078,2280.5,2280.4,12.04525863]
[1725740675656,3.2078,2280.5,2280.4,24.69134467]
[1725740677255,3.2078,2280.5,2280.1,0.7405]
[1725740677557,3.2078,2280.2,2280.1,13.38658604]
[1725740677960,3.2078,2280.2,2280.1,25.43184467]
[1725740681364,3.2078,2280.2,2280.1,25.87043467]
[1725740681763,3.2078,2280.6,2280.4,0.43853]
[1725740681964,3.2078,2280.6,2280.5,12.04525863]
[1725740682171,3.6463,2280.6,2280.5,12.04525863]
[1725740684668,0.43852,2280.5,2280.1,1.17909]
[1725740684862,0.43852,2280.5,2280.4,12.04525863]
[1725740685367,3.64632,2280.5,2280.4,12.04525863]
[1725740686868,3.2078,2280.5,2280.4,12.04525863]
[1725740687064,3.2078,2280.5,2280.4,24.69134467]
[1725740687270,3.64625,2280.9,2280.5,0.4385]
[1725740687469,3.64625,2280.9,2280.7,12.04525863]
[1725740687470,3.2078,2280.9,2280.7,12.04525863]
[1725740688270,3.2078,2280.9,2280.8,12.04525863]
[1725740688661,3.2078,2280.9,2280.8,25.12980467]
[1725740690165,3.2078,2280.9,2280.8,24.69134467]
[1725740692074,3.64624,2280.9,2280.8,24.69134467]
[1725740692276,3.64624,2280.9,2280.8,12.04525863]
[1725740693867,0.43844,2280.9,2280.8,12.04525863]
[1725740694068,3.64624,2280.9,2280.8,12.04525863]
[1725740696877,3.64624,2280.9,2280.8,12.09175863]
[1725740700883,3.2078,2280.9,2280.8,25.17630467]
[1725740701075,3.2078,2281.2,2281.1,0.43839]
[1725740701581,3.2078,2281.6,2281.3,0.43835]
[1725740701791,3.2078,2281.6,2281.5,12.48358863]
[1725740702279,3.2078,2281.6,2281.5,25.12967467]
[1725740702587,3.2078,2281.6,2281.5,25.49717467]
[1725740702983,3.2078,2281.6,2281.5,25.05884467]
[1725740704282,3.41238911,2281.6,2281.5,25.05884467]
[1725740705183,3.41235907,2281.6,2281.5,25.05884467]
[1725740706173,3.41235907,2281.6,2281.5,25.49717467]
[1725740708389,3.41233157,2281.6,2281.5,25.49717467]
[1725740709387,3.82132018,2281.6,2281.5,25.05884467]
[1725740709587,3.82132018,2281.6,2281.5,25.49717467]
[1725740710575,0.61352018,2281.6,2281.5,25.49717467]
[1725740710778,3.82132018,2281.6,2281.5,25.49717467]
[1725740712589,0.61352018,2281.6,2281.5,25.49717467]
[1725740712788,1.13360537,2281.8,2281.7,0.43829]
[1725740712989,0.20453886,2281.8,2281.7,12.48354863]
[1725740713185,0.20453886,2281.8,2281.7,31.12963467]
[1725740713581,3.2078,2281.9,2281.8,0.43827]
[1725740713893,3.41220629,2281.9,2281.8,12.48352863]
[1725740714090,3.41220629,2281.9,2281.8,31.12961467]
[1725740714283,0.20440629,2281.9,2281.8,32.22529467]
[1725740714494,3.2078,2282.1,2282.0,0.43823]
[1725740714784,3.61662169,2282.1,2282.0,12.48348863]
[1725740714988,3.82098431,2282.1,2282.0,25.12957467]
[1725740715188,0.20436262,2282.1,2282.0,25.12957467]
[1725740715685,3.41216262,2282.1,2282.0,12.04525863]
[1725740715886,0.43823,2282.0,2281.5,0.3675]
[1725740716186,1.57491434,2282.0,2281.9,12.04525863]
[1725740716389,4.25933479,2282.0,2281.9,12.04525863]
[1725740716592,4.95761412,2282.0,2281.9,12.04525863]
[1725740717790,4.78253933,2282.0,2281.9,12.04525863]
[1725740717989,5.39583495,2282.0,2281.9,12.04525863]
[1725740718687,4.95760495,2282.0,2281.9,12.04525863]
[1725740718988,4.34430933,2282.0,2281.9,12.04525863]
[1725740719290,5.39499722,2282.0,2281.9,12.04525863]
[1725740719485,5.96480986,2282.0,2281.9,12.04525863]
[1725740719685,5.52657986,2282.0,2281.9,12.48350863]
[1725740720089,5.52657986,2282.0,2281.9,25.12959467]
[1725740720396,3.82025789,2282.0,2281.9,25.12959467]
[1725740721085,3.2078,2282.0,2281.9,25.12959467]
[1725740721479,4.9547219,2282.0,2281.9,25.12959467]
[1725740721885,3.82025496,2282.0,2281.9,25.12959467]
[1725740722397,4.54626494,2282.0,2281.9,25.12959467]
[1725740722893,4.95461547,2282.0,2281.9,25.12959467]
[1725740723189,3.82027406,2282.0,2281.9,25.12959467]
[1725740723894,3.82027406,2282.0,2281.9,24.69134467]
[1725740724096,5.96482603,2282.0,2281.9,12.04525863]
[1725740724393,0.4383,2281.7,2281.4,0.43833]
[1725740724583,1.13419998,2281.6,2281.4,0.43833]
[1725740724788,0.20414456,2281.5,2281.4,13.08441604]
[1725740725187,0.20414456,2281.5,2281.4,25.12967467]
[1725740726289,4.34199998,2281.7,2281.6,0.43831]
[1725740726485,3.41175261,2281.7,2281.6,12.48356863]
[1725740726688,3.41175261,2281.7,2281.6,25.12965467]
[1725740727792,3.2078,2281.7,2281.6,25.12965467]
[1725740727995,1.13419998,2281.9,2281.6,24.69134467]
[1725740728298,1.57245998,2281.9,2281.8,12.04525863]
[1725740728498,5.39234192,2281.9,2281.8,12.04525863]
[1725740728690,4.25814194,2281.9,2281.8,12.04525863]
[1725740730486,3.81988194,2281.9,2281.8,12.04525863]
[1725740730693,4.95452573,2281.9,2281.8,12.85642863]
[1725740730995,4.95452573,2281.9,2281.8,12.41815863]
[1725740730996,5.39277573,2281.9,2281.8,12.41815863]
[1725740731203,0.43828,2281.8,2281.5,0.43832]
[1725740731496,0.20400627,2281.7,2281.6,12.48356863]
[1725740731701,3.41180627,2281.7,2281.6,12.48356863]
[1725740731894,3.41180627,2281.7,2281.6,12.04525863]
[1725740732292,5.95969389,2281.7,2281.6,12.04525863]
[1725740732489,6.69679389,2281.7,2281.6,12.04525863]
[1725740732688,4.55720392,2281.7,2281.3,0.81126]
[1725740732893,4.55720392,2281.7,2281.3,13.45734604]
[1725740732894,3.2078,2281.4,2281.3,13.45734604]
[1725740733085,3.41180627,2281.4,2281.3,13.45734604]
[1725740733291,4.54732735,2281.4,2281.3,25.50260467]
[1725740734103,3.41180627,2281.4,2281.3,25.50260467]
[1725740734297,4.54732735,2281.4,2281.3,25.50260467]
[1725740734494,4.91108162,2281.4,2281.3,25.50260467]
[1725740734796,3.41194111,2281.4,2281.3,25.50260467]
[1725740735389,4.54851016,2281.4,2281.3,25.50260467]
[1725740736401,3.41194111,2281.4,2281.3,25.50260467]
[1725740737499,1.34114873,2281.4,2281.3,34.72260467]
[1725740737805,1.34115822,2281.4,2281.3,35.81852467]
[1725740738100,1.13701711,2281.4,2281.3,35.81852467]
[1725740738302,1.5453742,2281.4,2281.3,35.81852467]
[1725740738995,0.40835709,2281.4,2281.3,35.81852467]
[1725740740295,0.40835709,2281.4,2281.3,34.72260467]
[1725740740503,1.5453742,2281.4,2281.3,31.50260467]
[1725740741300,1.13701711,2281.4,2281.3,31.50260467]
[1725740741502,0.61265597,2281.4,2281.3,31.50260467]
[1725740741900,0.61265597,2281.4,2281.3,25.50260467]
[1725740742406,0.61265597,2281.4,2281.3,31.50260467]
[1725740742700,0.61265597,2281.4,2281.3,25.50260467]
[1725740742902,0.61265597,2281.4,2281.3,31.50260467]
[1725740743101,0.61265597,2281.4,2281.3,25.50260467]
[1725740743301,1.74967308,2281.4,2281.3,25.50260467]
[1725740743608,1.74967308,2281.4,2281.3,25.54910467]
[1725740743901,1.74967308,2281.4,2281.3,26.64502467]
[1725740744107,0.61265597,2281.4,2281.3,32.64502467]
[1725740744311,1.74967308,2281.4,2281.3,32.64502467]
[1725740745006,1.13701711,2281.4,2281.3,25.54910467]
[1725740745207,4.91108162,2281.5,2281.4,0.43834]
[1725740745400,6.36958903,2281.5,2281.4,12.48359863]
[1725740745602,4.09440328,2281.5,2281.4,25.12968467]
[1725740746109,6.36958903,2281.5,2281.4,25.12968467]
[1725740746311,4.09440328,2281.5,2281.4,25.12968467]
[1725740747406,4.77514523,2281.5,2281.4,25.12968467]
[1725740747912,4.77514523,2281.5,2281.4,25.49668467]
[1725740748207,7.05033098,2281.5,2281.4,25.49668467]
[1725740748402,4.09440328,2281.5,2281.4,25.49668467]
[1725740748806,4.0944025,2281.5,2281.4,25.49668467]
[1725740749917,4.09432549,2281.5,2281.4,25.49668467]
[1725740750607,6.36951124,2281.5,2281.4,25.49668467]
[1725740751006,3.16171124,2281.5,2281.4,25.49668467]
[1725740751311,6.36951124,2281.5,2281.4,25.49668467]
[1725740751909,5.96119498,2281.5,2281.4,25.49668467]
[1725740752114,6.36951658,2281.5,2281.4,25.49668467]
[1725740753915,4.09433083,2281.5,2281.4,25.49668467]
[1725740754410,0.88653083,2281.5,2281.4,25.49668467]
[1725740754608,4.09433083,2281.5,2281.4,25.49668467]
[1725740755314,5.48298575,2281.5,2281.4,25.49668467]
[1725740755511,6.36953692,2281.5,2281.4,25.49668467]
[1725740755913,0.88655117,2281.5,2281.4,25.49668467]
[1725740758120,3.16173692,2281.5,2281.4,25.49668467]
[1725740758820,2.27518575,2281.5,2281.4,25.49668467]
[1725740759011,2.95757293,2281.5,2281.4,25.49668467]
[1725740759217,3.16169751,2281.5,2281.4,25.49668467]
[1725740760114,0.88651176,2281.5,2281.4,32.59255467]
[1725740760416,0.88647742,2281.5,2281.4,38.05143399]
[1725740760622,0.61243455,2281.5,2281.4,39.10068686]
[1725740760920,1.09536,2282.5,2281.9,12.48349863]
[1725740761114,2.28477386,2282.5,2282.0,12.41415863]
[1725740761421,4.28448459,2282.1,2282.0,12.41415863]
[1725740761622,3.84603304,2282.1,2282.0,12.85238863]
[1725740761920,3.48183304,2282.1,2282.0,16.92629564]
[1725740762119,3.92004304,2282.1,2282.0,12.04525863]
[1725740762716,3.48183304,2282.1,2282.0,12.04525863]
[1725740764316,3.48183746,2282.1,2282.0,12.04525863]
[1725740765322,3.92004746,2282.1,2282.0,12.04525863]
[1725740767516,3.92005739,2282.1,2282.0,12.04525863]
[1725740770730,10.57741739,2282.1,2281.4,1.53698012]
[1725740770925,1.1191401,2281.5,2281.3,0.43835]
[1725740771128,2.13222438,2281.4,2281.3,4.51213701]
[1725740771425,0.43839,2281.2,2281.0,0.3756]
[1725740771637,0.68211428,2281.1,2281.0,5.32615701]
[1725740772125,0.68211428,2281.1,2281.0,17.37141564]
[1725740772535,1.36272362,2281.1,2281.0,17.37141564]
[1725740772734,1.5666111,2281.1,2281.0,17.37141564]
[1725740775225,0.88600176,2281.1,2281.0,17.37141564]
[1725740775429,0.20388748,2281.1,2281.0,17.75931564]
[1725740775631,0.88600176,2281.1,2281.0,17.75931564]
[1725740775829,0.47795259,2281.1,2281.0,17.75931564]
[1725740776029,0.88600176,2281.1,2281.0,17.75931564]
[1725740777034,0.20388748,2281.1,2281.0,17.75931564]
[1725740777338,4.41545,2281.4,2281.1,0.4384]
[1725740777634,4.41545,2281.4,2281.2,12.48363863]
[1725740777835,0.88621201,2281.3,2281.2,12.48363863]
[1725740778029,0.88621201,2281.3,2281.2,0.43838]
[1725740778228,1.56708537,2281.3,2281.2,12.48363863]
[1725740778634,0.88621201,2281.3,2281.2,12.48363863]
[1725740779927,0.88621201,2281.3,2281.2,16.99577564]
[1725740780741,3.8885952,2281.4,2281.3,0.43836]
[1725740780941,3.8885952,2281.4,2281.3,12.48361863]
[1725740781136,0.88612474,2281.4,2281.3,12.87281863]
[1725740781326,4.09392474,2281.4,2281.3,12.87281863]
[1725740782644,0.88612474,2281.4,2281.3,17.38495564]
[1725740783028,0.61201092,2281.4,2281.3,17.38495564]
[1725740783338,0.61201694,2281.4,2281.3,17.38495564]
[1725740783839,0.20391428,2281.6,2281.3,18.04251564]
[1725740784031,0.3889,2281.8,2281.6,12.48356863]
[1725740784239,0.3889,2281.8,2281.7,12.43835863]
[1725740784638,1.95586514,2281.8,2281.7,12.87664863]
[1725740784941,1.27499253,2281.8,2281.7,12.87664863]
[1725740785333,1.95585474,2281.8,2281.7,12.87664863]
[1725740785647,1.95585474,2281.8,2281.7,17.38878564]
[1725740785648,1.56695474,2281.8,2281.7,17.38878564]
[1725740785937,0.88609253,2281.8,2281.7,17.38878564]
[1725740787541,3.88875148,2282.1,2282.0,0.43823]
[1725740787737,4.77482006,2282.1,2282.0,12.48348863]
[1725740787940,4.09386858,2282.1,2282.0,12.48348863]
[1725740789336,4.09386858,2282.1,2282.0,16.99562564]
[1725740790137,0.88606858,2282.1,2282.0,16.99562564]
[1725740790338,0.88606858,2282.1,2282.0,17.35472564]
[1725740796250,0.61203681,2282.1,2282.0,17.35472564]
[1725740796744,0.61203681,2282.1,2282.0,18.69472564]
[1725740797743,5.88376804,2282.4,2282.3,0.43817]
[1725740797955,5.88376804,2282.4,2282.3,12.48342863]
[1725740798256,6.37375432,2282.4,2282.3,12.48342863]
[1725740799251,4.09378628,2282.4,2282.3,12.48342863]
[1725740799853,4.09378628,2282.4,2282.3,16.99556564]
[1725740800646,3.81978153,2282.4,2282.3,16.99556564]
[1725740801353,0.61198153,2282.4,2282.3,16.99556564]
[1725740801550,0.61198153,2282.4,2282.3,18.33556564]
[1725740801752,2.27996804,2282.8,2282.3,25.21044043]
[1725740801958,1.75045002,2282.7,2282.6,0.43811]
[1725740802251,0.20386805,2282.7,2282.6,5.75154701]
[1725740802454,0.20386805,2282.7,2282.6,18.20980564]
[1725740802751,0.20386805,2282.7,2282.6,24.20980564]
[1725740803248,0.20386805,2282.7,2282.6,18.20980564]
[1725740803844,0.20386805,2282.7,2282.6,17.79680564]
[1725740804044,0.20386805,2282.7,2282.6,17.35869564]
[1725740804248,0.20386805,2282.7,2282.6,16.55739564]
[1725740804754,0.43809,2282.7,2282.6,12.04525863]
[1725740804948,0.84603066,2282.7,2282.6,12.04525863]
[1725740805145,1.04981028,2282.7,2282.6,12.04525863]
[1725740805344,1.04981128,2282.7,2282.6,12.04525863]
[1725740805544,1.45773104,2282.7,2282.6,12.04525863]
[1725740805747,1.01963182,2282.7,2282.6,12.04525863]
[1725740805951,1.45772182,2282.7,2282.6,12.04525863]
[1725740806147,0.43812,2282.6,2282.3,0.85815]
[1725740806356,3.2078,2282.6,2282.5,12.04525863]
[1725740806551,4.95605062,2282.6,2282.5,12.04525863]
[1725740808159,4.34434776,2282.6,2282.5,12.04525863]
[1725740808556,4.95599953,2282.6,2282.5,12.04525863]
[1725740808952,3.81945177,2282.6,2282.5,12.04525863]
[1725740809562,3.81945177,2282.6,2282.5,12.48338863]
[1725740809858,4.54766158,2282.6,2282.5,12.48338863]
[1725740811160,4.54766158,2282.6,2282.5,12.04525863]
[1725740812863,4.54766158,2282.6,2282.5,12.48338863]
[1725740813860,4.54766158,2282.6,2282.5,12.04525863]
[1725740814565,4.54766158,2282.6,2282.5,12.48338863]
[1725740814767,3.4115595,2282.6,2282.5,12.48338863]
[1725740817058,3.4115595,2282.6,2282.5,16.99552564]
[1725740817468,3.4115595,2282.6,2282.5,17.84432564]
[1725740817658,3.41163908,2282.6,2282.5,17.84432564]
[1725740818065,0.20383908,2282.6,2282.5,17.84432564]
[1725740818368,4.75030208,2282.8,2282.6,0.4381]
[1725740818567,4.75030208,2282.8,2282.7,12.04525863]
[1725740818764,5.36220599,2282.8,2282.7,12.04525863]
[1725740819857,4.75030208,2282.8,2282.7,12.04525863]
[1725740820364,5.80027967,2282.8,2282.7,12.04525863]
[1725740820665,4.66417759,2282.8,2282.7,12.04525863]
[1725740822374,4.66417759,2282.8,2282.7,12.48334863]
[1725740822673,6.36878365,2282.8,2282.7,12.48334863]
[1725740823072,5.75688606,2282.8,2282.7,12.48334863]
[1725740823274,6.36870966,2282.8,2282.7,12.04525863]
[1725740823967,4.6641036,2282.8,2282.7,12.04525863]
[1725740824177,4.93806293,2282.8,2282.7,12.04525863]
[1725740824563,4.01020865,2282.8,2282.7,12.04525863]
[1725740824760,7.21800865,2282.8,2282.7,12.48334863]
[1725740824965,4.66408066,2282.8,2282.7,12.48334863]
[1725740826168,4.93803554,2282.8,2282.7,12.48334863]
[1725740826570,7.21800358,2282.8,2282.7,12.48334863]
[1725740827473,7.21800358,2282.8,2282.7,12.04525863]
[1725740827677,4.93803554,2282.8,2282.7,12.04525863]
[1725740829078,5.61897211,2282.8,2282.7,12.04525863]
[1725740829577,5.26165446,2282.8,2282.7,12.04525863]
[1725740829777,8.46945446,2282.8,2282.7,12.04525863]
[1725740830169,5.26165446,2282.8,2282.7,12.04525863]
[1725740830370,8.46945446,2282.8,2282.7,12.04525863]
[1725740830874,7.17671723,2282.8,2282.7,12.04525863]
[1725740831076,7.78859166,2282.8,2282.7,12.04525863]
[1725740831476,4.05228,2282.8,2282.7,12.04525863]
[1725740831680,4.93812206,2282.8,2282.7,12.04525863]
[1725740831975,4.5809539,2282.8,2282.7,12.04525863]
[1725740832180,7.78876308,2282.8,2282.7,12.04525863]
[1725740832873,4.58096308,2282.8,2282.7,12.04525863]
[1725740833079,7.78876308,2282.8,2282.7,12.04525863]
[1725740834073,4.93813124,2282.8,2282.7,12.09175863]
[1725740834584,7.78876308,2282.8,2282.7,12.09175863]
[1725740834878,7.78878017,2282.8,2282.7,12.09175863]
[1725740835175,7.78878017,2282.8,2282.7,0.0465]
[1725740835385,7.78878017,2282.8,2282.7,12.09175863]
[1725740835680,4.58098017,2282.8,2282.7,12.09175863]
[1725740836182,7.78878017,2282.8,2282.7,12.09175863]
[1725740836972,7.78878017,2282.8,2282.7,0.0465]
[1725740837178,1.09548,2282.2,2281.8,1.14872092]
[1725740837478,6.60834191,2282.0,2281.9,0.4108]
[1725740837779,0.43825,2281.9,2281.8,4.90383701]
[1725740838076,0.43825,2281.9,2281.7,0.43828]
[1725740838279,0.43825,2281.9,2281.8,12.04525863]
[1725740838280,1.80095623,2281.9,2281.8,12.04525863]
[1725740838478,0.64206412,2281.9,2281.8,12.04525863]
[1725740838675,2.48298563,2281.9,2281.8,12.04525863]
[1725740838875,3.36752554,2281.9,2281.8,12.04525863]
[1725740839080,8.21675473,2281.9,2281.5,1.53698012]
[1725740839279,7.26680806,2281.7,2281.6,12.04525863]
[1725740839779,0.43831,2281.6,2281.4,0.83063]
[1725740839978,0.8858488,2281.5,2281.4,5.34276701]
[1725740840284,4.37329635,2281.5,2281.4,12.04525863]
[1725740840490,5.34029686,2281.5,2281.4,12.04525863]
[1725740841478,2.17373,2281.5,2281.4,12.04525863]
[1725740841683,3.05963343,2281.5,2281.4,12.04525863]
[1725740842174,5.33561152,2281.5,2281.4,12.04525863]
[1725740842576,6.43143152,2281.5,2281.4,12.04525863]
[1725740842882,6.43128708,2281.5,2281.4,12.04525863]
[1725740843184,6.43012887,2281.5,2281.4,12.04525863]
[1725740843776,0.43838,2281.2,2281.1,0.3923]
[1725740843974,5.96384165,2281.2,2281.1,4.90443701]
[1725740844189,5.96384165,2281.2,2281.1,16.94969564]
[1725740844484,4.2579616,2281.2,2281.1,16.94969564]
[1725740844687,3.64618,2281.2,2281.1,16.94969564]
[1725740844884,4.25795639,2281.2,2281.1,16.94969564]
[1725740845578,5.39391999,2281.2,2281.1,16.94969564]
[1725740845781,5.39391999,2281.2,2281.1,12.43755863]
[1725740845980,4.25795639,2281.2,2281.1,12.43755863]
[1725740846177,5.3939176,2281.2,2281.1,12.43755863]
[1725740846699,5.3939176,2281.2,2281.1,12.04525863]
[1725740847283,4.98597739,2281.2,2281.1,12.04525863]
[1725740847588,3.41163618,2281.2,2281.1,12.04525863]
[1725740847885,0.20383618,2281.2,2281.1,12.04525863]
[1725740848187,0.20383618,2281.2,2281.1,12.48365863]
[1725740849190,0.20383618,2281.2,2281.1,12.04525863]
[1725740851487,0.20383618,2281.2,2281.1,12.48365863]
[1725740851690,0.20383618,2281.2,2281.1,12.04525863]
[1725740852286,3.64617,2281.3,2281.1,12.04525863]
[1725740852793,3.64617,2281.3,2281.2,0.4035]
[1725740853090,3.84999849,2281.3,2281.2,0.4035]
[1725740853488,3.64617,2281.3,2281.2,0.4035]
[1725740853684,3.85000033,2281.3,2281.2,0.4035]
[1725740854392,3.85000033,2281.3,2281.2,12.44875863]
[1725740854592,3.2078,2281.3,2281.2,17.39927564]
[1725740857691,3.2078,2281.3,2281.2,18.73927564]
[1725740858195,3.2078,2281.3,2281.2,19.83523564]
[1725740858494,3.2078,2281.6,2281.5,0.43833]
[1725740858700,3.2078,2281.6,2281.5,16.99572564]
[1725740863591,1.77827,2281.8,2281.5,16.99572564]
[1725740863905,0.20383428,2281.7,2281.6,0.3739]
[1725740864103,0.64212428,2281.7,2281.6,0.7343]
[1725740864295,0.20383428,2281.7,2281.6,17.29169564]
[1725740866087,0.64212428,2281.7,2281.6,17.29169564]
[1725740866604,0.64212428,2281.7,2281.6,17.73000564]
[1725740867209,0.20383428,2281.7,2281.6,17.73000564]
[1725740868808,0.20383124,2281.7,2281.6,17.73000564]
[1725740870206,3.11808245,2281.7,2281.6,12.04525863]
[1725740870401,0.43834,2281.4,2281.3,0.43835]
[1725740870711,0.64217124,2281.4,2281.3,0.43835]
[1725740871008,0.64217124,2281.4,2281.3,12.48360863]
[1725740871605,0.20383124,2281.4,2281.3,12.48360863]
[1725740873009,0.64217124,2281.4,2281.3,12.04525863]
[1725740873906,0.20383124,2281.4,2281.3,16.99575564]
[1725740875604,4.34262305,2281.5,2281.4,0.43834]
[1725740875811,4.95440366,2281.5,2281.4,12.48359863]
[1725740876010,3.41162624,2281.5,2281.4,12.48359863]
[1725740876208,4.9544006,2281.5,2281.4,12.48359863]
[1725740876605,1.7466006,2281.5,2281.4,12.48359863]
[1725740878407,0.61177755,2281.5,2281.4,16.99573564]
[1725740878606,1.74912257,2281.5,2281.4,16.99573564]
[1725740878814,0.61177755,2281.5,2281.4,16.99573564]
[1725740879003,1.13734371,2281.5,2281.4,16.99573564]
[1725740879203,0.6116805,2281.5,2281.4,16.99573564]
[1725740879608,1.74929788,2281.5,2281.4,16.99573564]
[1725740879808,0.6116805,2281.5,2281.4,16.99573564]
[1725740880211,2.31752647,2281.5,2281.4,16.99573564]
[1725740880913,1.70588005,2281.5,2281.4,16.99573564]
[1725740881114,2.31754096,2281.5,2281.4,16.99573564]
[1725740881317,2.59162708,2281.5,2281.4,16.99573564]
[1725740882205,0.88574703,2281.5,2281.4,16.99573564]
[1725740882610,3.16025376,2281.5,2281.4,16.99573564]
[1725740883618,3.16025376,2281.5,2281.2,0.7699]
[1725740883619,7.70805376,2281.5,2281.2,0.7699]
[1725740883919,2.71286673,2281.3,2281.2,12.04525863]
[1725740884230,3.34465778,2281.3,2281.2,12.04525863]
[1725740884420,5.98924791,2281.3,2281.2,12.04525863]
[1725740884619,1.56629778,2281.3,2281.2,16.99577564]
[1725740884821,3.84753892,2281.3,2281.2,16.99577564]
[1725740885024,4.28594976,2281.3,2281.2,12.04525863]
[1725740885319,3.96879971,2281.3,2281.2,12.04525863]
[1725740885623,4.64935046,2281.3,2281.2,12.04525863]
[1725740887020,2.36805778,2281.3,2281.2,12.04525863]
[1725740887220,4.64956438,2281.3,2281.2,12.48363863]
[1725740887520,4.21120438,2281.3,2281.2,12.48363863]
[1725740887715,1.56629778,2281.3,2281.2,12.48363863]
[1725740888021,3.84784145,2281.3,2281.2,12.48363863]
[1725740888420,1.56629778,2281.3,2281.2,12.48363863]
[1725740888618,4.28618843,2281.3,2281.2,12.04525863]
[1725740888820,4.28621636,2281.3,2281.2,12.04525863]
[1725740889124,2.00465778,2281.3,2281.2,12.04525863]
[1725740889425,2.00488128,2281.3,2281.2,12.43125863]
[1725740889612,0.43836,2281.3,2281.2,12.43125863]
[1725740889815,2.00487463,2281.3,2281.2,12.86963863]
[1725740890118,1.56651463,2281.3,2281.2,12.86963863]
[1725740891023,2.00487463,2281.3,2281.2,12.86963863]
[1725740892918,0.43836,2281.3,2281.2,12.86963863]